[Event "EYCC Girls-U18 2019"]
[Site "Bratislava"]
[Date "2019.08.03"]
[Round "2.1"]
[White "Badelka, Olga"]
[Black "Grigorieva, Yulia"]
[Result "1-0"]
[ECO "D82"]
[WhiteElo "2386"]
[BlackElo "2096"]
[Annotator "NA"]
[PlyCount "69"]
[EventDate "2019.08.02"]
[EventType "swiss"]
[EventCountry "SVK"]
[SourceTitle "playchess.com"]
[Source "ChessBase"]
[SourceQuality "1"]
[TimeControl "40/5400+30:1800+30"]

1. d4 {[%emt 0:00:00]} Nf6 {[%emt 0:00:00]} 2. c4 {[%emt 0:00:00]} g6 {[%emt 0:00:00]} 3. Nc3 {[%emt 0:00:05]} d5 {[%emt 0:00:00]} 4. Bf4 {[%emt 0:00:23]} Bg7 {[%emt 0:02:07]} 5. e3 {[%emt 0:00:21]} c5 {[%emt 0:02:31]} 6. dxc5 {[%emt 0:00:18]} Qa5 {[%emt 0:00:29]} 7. Rc1 {[%emt 0:00:09]} dxc4 {[%emt 0:01:32]} 8. Bxc4 {[%emt 0:00:10]} Nc6 {[%emt 0:01:23]} 9. Nf3 {[%emt 0:01:24]} O-O {[%emt 0:09:22]} 10. O-O {[%emt 0:01:41]} Qxc5 {[%emt 0:02:32]} 11. Nb5 {[%emt 0:14:21]} Qh5 {[%emt 0:03:41]} 12. Nc7 {[%emt 0:02:09]} e5 {[%emt 0:01:37]} 13. Nxa8 {[%emt 0:19:49]} exf4 {[%emt 0:07:54]} 14. exf4 {[%emt 0:00:42]} Bg4 {[%emt 0:11:09]} 15. Nc7 {[%emt 0:00:28]} Bxf3 {[%emt 0:05:30]} 16. Qxf3 {[%emt 0:00:23]} Qxf3 {[%emt 0:02:16]} 17. gxf3 {[%emt 0:00:03]} Nd4 {[%emt 0:01:24]} 18. Rfd1 {[%emt 0:06:58]} Nh5 {[%emt 0:04:49]} 19. Nb5 {[%emt 0:10:38]} Nxf3+ {[%emt 0:04:21]} 20. Kg2 {[%emt 0:00:04]} Nh4+ {[%emt 0:01:15]} 21. Kh1 {[%emt 0:00:25]} Nf6 {[%emt 0:08:08]} 22. Nd6 {[%emt 0:01:46]} Ng4 {[%emt 0:02:38]} 23. Rc2 {[%emt 0:00:38]} h6 {[%emt 0:11:24]} 24. Nxf7 {[%emt 0:14:23]} Kh7 {[%emt 0:00:10]} 25. Be6 {[%emt 0:00:49]} Nf6 {[%emt 0:01:19]} 26. Rd8 {[%emt 0:03:40]} Rxd8 {[%emt 0:03:41]} 27. Nxd8 {[%emt 0:00:04]} b6 {[%emt 0:02:14]} 28. Bb3 {[%emt 0:01:26]} Ne4 {[%emt 0:01:24]} 29. Ne6 {[%emt 0:00:40]} a5 {[%emt 0:00:54]} 30. Rc7 {[%emt 0:01:42]} Nxf2+ {[%emt 0:01:43]} 31. Kg1 {[%emt 0:00:02]} Nh3+ {[%emt 0:00:09]} 32. Kf1 {[%emt 0:00:02]} Nf5 {[%emt 0:01:07]} 33. Kg2 {[%emt 0:00:25]} Kh8 {[%emt 0:00:59]} 34. Nxg7 {[%emt 0:01:22]} Nxf4+ {[%emt 0:00:07]} 35. Kf3 {[%emt 0:00:16]} 1-0

[Event "EYCC Girls-U18 2019"]
[Site "Bratislava"]
[Date "2019.08.03"]
[Round "2.2"]
[White "Palma, Maria"]
[Black "Afonasieva, Anna"]
[Result "0-1"]
[ECO "A59"]
[WhiteElo "2137"]
[BlackElo "2370"]
[Annotator "NA"]
[PlyCount "52"]
[EventDate "2019.08.02"]
[EventType "swiss"]
[EventCountry "SVK"]
[SourceTitle "playchess.com"]
[Source "ChessBase"]
[SourceQuality "1"]
[TimeControl "40/5400+30:1800+30"]

1. d4 {[%emt 0:00:00]} Nf6 {[%emt 0:00:00]} 2. c4 {[%emt 0:00:00]} c5 {[%emt 0:00:00]} 3. d5 {[%emt 0:00:00]} b5 {[%emt 0:00:00]} 4. cxb5 {[%emt 0:00:00]} a6 {[%emt 0:00:00]} 5. bxa6 {[%emt 0:00:07]} Bxa6 {[%emt 0:00:00]} 6. Nc3 {[%emt 0:01:11]} d6 {[%emt 0:00:08]} 7. e4 {[%emt 0:04:05]} Bxf1 {[%emt 0:00:15]} 8. Kxf1 {[%emt 0:00:04]} g6 {[%emt 0:00:12]} 9. g3 {[%emt 0:00:24]} Bg7 {[%emt 0:00:09]} 10. Kg2 {[%emt 0:01:44]} O-O {[%emt 0:00:13]} 11. Nf3 {[%emt 0:01:58]} Nbd7 {[%emt 0:03:18]} 12. a4 {[%emt 0:02:02]} Qb6 {[%emt 0:03:32]} 13. Qc2 {[%emt 0:02:21]} Rfb8 {[%emt 0:06:25]} 14. Ra3 {[%emt 0:10:41]} Ng4 {[%emt 0:24:24]} 15. Nd2 {[%emt 0:18:46]} Bd4 {[%emt 0:15:39]} 16. Nc4 {[%emt 0:06:47]} Qb4 {[%emt 0:15:37]} 17. Nb5 {[%emt 0:04:12]} Nde5 {[%emt 0:01:25]} 18. b3 {[%emt 0:31:35]} Nxc4 {[%emt 0:01:29]} 19. Qxc4 {[%emt 0:03:35]} Qxc4 {[%emt 0:03:38]} 20. bxc4 {[%emt 0:00:05]} Ne5 {[%emt 0:00:28]} 21. Nxd4 {[%emt 0:04:00]} cxd4 {[%emt 0:00:09]} 22. Rd1 {[%emt 0:01:09]} Rb1 {[%emt 0:02:26]} 23. f4 {[%emt 0:03:29]} Nxc4 {[%emt 0:00:31]} 24. Rad3 {[%emt 0:00:59]} Rxa4 {[%emt 0:01:29]} 25. Rxd4 {[%emt 0:00:40]} Ra2+ {[%emt 0:00:12]} 26. Kh3 {[%emt 0:01:46]} Rc2 {[%emt 0:00:14]} 0-1

[Event "EYCC Girls-U18 2019"]
[Site "Bratislava"]
[Date "2019.08.03"]
[Round "2.3"]
[White "Goltseva, Ekaterina"]
[Black "Ferkova, Dominika"]
[Result "1/2-1/2"]
[ECO "D43"]
[WhiteElo "2304"]
[BlackElo "2009"]
[Annotator "NA"]
[PlyCount "100"]
[EventDate "2019.08.02"]
[EventType "swiss"]
[EventCountry "SVK"]
[SourceTitle "playchess.com"]
[Source "ChessBase"]
[SourceQuality "1"]
[TimeControl "40/5400+30:1800+30"]

1. d4 {[%emt 0:00:00]} d5 {[%emt 0:00:00]} 2. c4 {[%emt 0:00:00]} c6 {[%emt 0:00:00]} 3. Nf3 {[%emt 0:00:08]} Nf6 {[%emt 0:00:14]} 4. Nc3 {[%emt 0:00:29]} e6 {[%emt 0:00:07]} 5. g3 {[%emt 0:00:32]} Nbd7 {[%emt 0:06:41]} 6. Bg2 {[%emt 0:00:33]} Bd6 {[%emt 0:04:19]} 7. O-O {[%emt 0:00:22]} O-O {[%emt 0:00:13]} 8. Nd2 {[%emt 0:00:27]} dxc4 {[%emt 0:13:13]} 9. Nxc4 {[%emt 0:00:37]} Bc7 {[%emt 0:02:10]} 10. f4 {[%emt 0:07:03]} Nb6 {[%emt 0:06:36]} 11. Ne5 {[%emt 0:06:57]} Qe7 {[%emt 0:06:18]} 12. Qc2 {[%emt 0:07:34]} a6 {[%emt 0:15:48]} 13. Be3 {[%emt 0:12:12]} Nfd5 {[%emt 0:09:50]} 14. Bf2 {[%emt 0:01:44]} f6 {[%emt 0:07:02]} 15. Nd3 {[%emt 0:04:00]} Kh8 {[%emt 0:05:34]} 16. Ne4 {[%emt 0:13:34]} Nd7 {[%emt 0:04:17]} 17. Nec5 {[%emt 0:05:36]} N5b6 {[%emt 0:08:03]} 18. e4 {[%emt 0:04:11]} Nxc5 {[%emt 0:02:42]} 19. Nxc5 {[%emt 0:03:30]} e5 {[%emt 0:03:11]} 20. Nd3 {[%emt 0:11:48]} exd4 {[%emt 0:01:38]} 21. Bxd4 {[%emt 0:00:13]} Nd7 {[%emt 0:00:42]} 22. Kh1 {[%emt 0:05:15]} Re8 {[%emt 0:01:20]} 23. Rae1 {[%emt 0:01:05]} Nb8 {[%emt 0:00:44]} 24. e5 {[%emt 0:02:46]} f5 {[%emt 0:00:28]} 25. e6 {[%emt 0:01:56]} Bd6 {[%emt 0:00:41]} 26. Bh3 {[%emt 0:06:03]} Qf8 {[%emt 0:00:29]} 27. Qb3 {[%emt 0:02:47]} c5 {[%emt 0:00:33]} 28. e7 {[%emt 0:00:35]} Bxe7 {[%emt 0:00:28]} 29. Bxc5 {[%emt 0:00:38]} Bxc5 {[%emt 0:00:22]} 30. Nxc5 {[%emt 0:00:20]} b5 {[%emt 0:00:39]} 31. Bg2 {[%emt 0:00:44]} Ra7 {[%emt 0:00:02]} 32. Qd5 {[%emt 0:00:51]} Rae7 {[%emt 0:00:38]} 33. Rd1 {[%emt 0:01:05]} h6 {[%emt 0:00:37]} 34. b4 {[%emt 0:00:36]} Nd7 {[%emt 0:00:25]} 35. Qd6 {[%emt 0:00:39]} Nxc5 {[%emt 0:00:24]} 36. bxc5 {[%emt 0:00:18]} Qf7 {[%emt 0:00:29]} 37. a3 {[%emt 0:00:37]} Re2 {[%emt 0:00:44]} 38. c6 {[%emt 0:00:30]} Qa2 {[%emt 0:00:33]} 39. Qd5 {[%emt 0:00:28]} Qxa3 {[%emt 0:00:31]} 40. Bf3 {[%emt 0:00:00]} R2e7 {[%emt 0:00:00]} 41. Bh5 {[%emt 0:04:59]} Be6 {[%emt 0:13:36]} 42. Qd4 {[%emt 0:07:00]} Bf7 {[%emt 0:05:40]} 43. Bxf7 {[%emt 0:13:25]} Rxf7 {[%emt 0:00:06]} 44. Ra1 {[%emt 0:00:15]} Qe3 {[%emt 0:05:28]} 45. Qxe3 {[%emt 0:01:18]} Rxe3 {[%emt 0:00:02]} 46. Rxa6 {[%emt 0:03:40]} Rc3 {[%emt 0:02:18]} 47. Rb1 {[%emt 0:01:14]} Rc5 {[%emt 0:01:03]} 48. Rb6 {[%emt 0:00:30]} Rc7 {[%emt 0:00:12]} 49. R1xb5 {[%emt 0:00:17]} R7xc6 {[%emt 0:00:07]} 50. Rxc6 {[%emt 0:00:20]} Rxb5 {[%emt 0:00:05]} 1/2-1/2

[Event "EYCC Girls-U18 2019"]
[Site "Bratislava"]
[Date "2019.08.03"]
[Round "2.4"]
[White "Redondo Benavente, Ana"]
[Black "Beydullayeva, Govhar"]
[Result "1/2-1/2"]
[ECO "B23"]
[WhiteElo "2176"]
[BlackElo "2282"]
[Annotator "NA"]
[PlyCount "60"]
[EventDate "2019.08.02"]
[EventType "swiss"]
[EventCountry "SVK"]
[SourceTitle "playchess.com"]
[Source "ChessBase"]
[SourceQuality "1"]
[TimeControl "40/5400+30:1800+30"]

1. e4 {[%emt 0:00:00]} c5 {[%emt 0:00:00]} 2. Nc3 {[%emt 0:00:00]} d6 {[%emt 0:00:12]} 3. Bb5+ {[%emt 0:03:16]} Nd7 {[%emt 0:00:34]} 4. f4 {[%emt 0:00:16]} a6 {[%emt 0:01:21]} 5. Bxd7+ {[%emt 0:01:12]} Bxd7 {[%emt 0:00:36]} 6. Nf3 {[%emt 0:00:19]} e6 {[%emt 0:11:37]} 7. O-O {[%emt 0:01:05]} b5 {[%emt 0:08:03]} 8. d4 {[%emt 0:14:17]} cxd4 {[%emt 0:00:45]} 9. Qxd4 {[%emt 0:01:53]} Qc7 {[%emt 0:08:00]} 10. Be3 {[%emt 0:01:39]} Ne7 {[%emt 0:02:52]} 11. Rad1 {[%emt 0:06:35]} Nc6 {[%emt 0:00:19]} 12. Qd3 {[%emt 0:09:30]} Be7 {[%emt 0:13:26]} 13. e5 {[%emt 0:02:23]} d5 {[%emt 0:04:12]} 14. f5 {[%emt 0:04:09]} b4 {[%emt 0:11:30]} 15. Ne2 {[%emt 0:26:23]} Na5 {[%emt 0:16:12]} 16. fxe6 {[%emt 0:06:21]} fxe6 {[%emt 0:00:21]} 17. Nf4 {[%emt 0:05:58]} Nc4 {[%emt 0:02:36]} 18. Bd4 {[%emt 0:03:16]} O-O {[%emt 0:02:58]} 19. Nh3 {[%emt 0:01:43]} Be8 {[%emt 0:09:43]} 20. Rf2 {[%emt 0:05:10]} Bg6 {[%emt 0:00:25]} 21. Qe2 {[%emt 0:01:00]} Bc5 {[%emt 0:01:08]} 22. Bxc5 {[%emt 0:01:04]} Qxc5 {[%emt 0:00:02]} 23. b3 {[%emt 0:03:01]} Ne3 {[%emt 0:01:01]} 24. Rd4 {[%emt 0:00:49]} Rxf3 {[%emt 0:01:01]} 25. Rxf3 {[%emt 0:00:13]} Nxc2 {[%emt 0:00:06]} 26. Rff4 {[%emt 0:00:52]} Nxd4 {[%emt 0:00:17]} 27. Qg4 {[%emt 0:00:00]} Nf3+ {[%emt 0:00:00]} 28. Kf1 {[%emt 0:01:01]} Nxh2+ {[%emt 0:00:00]} 29. Ke2 {[%emt 0:00:24]} Nxg4 {[%emt 0:00:00]} 30. Rxg4 {[%emt 0:00:15]} Bh5 {[%emt 0:00:03]} 1/2-1/2

[Event "EYCC Girls-U18 2019"]
[Site "Bratislava"]
[Date "2019.08.03"]
[Round "2.5"]
[White "Antova, Gabriela"]
[Black "Moscicka, Pola"]
[Result "1-0"]
[ECO "E10"]
[WhiteElo "2257"]
[BlackElo "1870"]
[Annotator "NA"]
[PlyCount "67"]
[EventDate "2019.08.02"]
[EventType "swiss"]
[EventCountry "SVK"]
[SourceTitle "playchess.com"]
[Source "ChessBase"]
[SourceQuality "1"]
[TimeControl "40/5400+30:1800+30"]

1. d4 {[%emt 0:00:00]} Nf6 {[%emt 0:00:00]} 2. c4 {[%emt 0:00:00]} e6 {[%emt 0:00:00]} 3. Nf3 {[%emt 0:00:00]} c5 {[%emt 0:00:09]} 4. d5 {[%emt 0:00:02]} b5 {[%emt 0:00:16]} 5. Bg5 {[%emt 0:03:21]} exd5 {[%emt 0:01:09]} 6. cxd5 {[%emt 0:00:09]} h6 {[%emt 0:00:30]} 7. Bxf6 {[%emt 0:04:45]} Qxf6 {[%emt 0:00:07]} 8. Qc2 {[%emt 0:00:33]} Be7 {[%emt 0:00:37]} 9. e4 {[%emt 0:04:44]} Qb6 {[%emt 0:01:00]} 10. a4 {[%emt 0:04:24]} bxa4 {[%emt 0:00:32]} 11. Rxa4 {[%emt 0:10:05]} Na6 {[%emt 0:02:07]} 12. Nbd2 {[%emt 0:02:13]} Nb4 {[%emt 0:02:20]} 13. Qd1 {[%emt 0:07:47]} O-O {[%emt 0:08:57]} 14. Be2 {[%emt 0:03:01]} d6 {[%emt 0:05:51]} 15. Nc4 {[%emt 0:04:41]} Qc7 {[%emt 0:01:29]} 16. O-O {[%emt 0:01:15]} Re8 {[%emt 0:06:05]} 17. Ra3 {[%emt 0:08:40]} Bb7 {[%emt 0:05:37]} 18. Nfd2 {[%emt 0:03:26]} f5 {[%emt 0:07:30]} 19. Na5 {[%emt 0:13:56]} Kh8 {[%emt 0:10:45]} 20. Nxb7 {[%emt 0:03:51]} Qxb7 {[%emt 0:00:50]} 21. exf5 {[%emt 0:04:01]} Rad8 {[%emt 0:01:45]} 22. Bf3 {[%emt 0:00:53]} Bf6 {[%emt 0:00:59]} 23. Nc4 {[%emt 0:02:54]} Qb5 {[%emt 0:06:47]} 24. Qb3 {[%emt 0:03:31]} Re7 {[%emt 0:07:58]} 25. Raa1 {[%emt 0:01:31]} Qd7 {[%emt 0:02:48]} 26. Rfe1 {[%emt 0:01:10]} Qxf5 {[%emt 0:06:40]} 27. Rxe7 {[%emt 0:00:25]} Bxe7 {[%emt 0:00:05]} 28. Re1 {[%emt 0:02:23]} Qf7 {[%emt 0:03:08]} 29. Re6 {[%emt 0:01:29]} Re8 {[%emt 0:07:21]} 30. Qe3 {[%emt 0:04:05]} Qf5 {[%emt 0:04:55]} 31. Nxd6 {[%emt 0:01:47]} Qb1+ {[%emt 0:02:14]} 32. Qe1 {[%emt 0:00:01]} Qxb2 {[%emt 0:00:35]} 33. Nxe8 {[%emt 0:00:17]} Nd3 {[%emt 0:00:28]} 34. Qf1 {[%emt 0:00:34]} 1-0

[Event "EYCC Girls-U18 2019"]
[Site "Bratislava"]
[Date "2019.08.03"]
[Round "2.6"]
[White "Ciocan, Maria-Alexandra"]
[Black "Gajcin, Marina"]
[Result "1-0"]
[ECO "A48"]
[WhiteElo "2062"]
[BlackElo "2267"]
[Annotator "NA"]
[PlyCount "87"]
[EventDate "2019.08.02"]
[EventType "swiss"]
[EventCountry "SVK"]
[SourceTitle "playchess.com"]
[Source "ChessBase"]
[SourceQuality "1"]
[TimeControl "40/5400+30:1800+30"]

1. d4 {[%emt 0:02:31]} Nf6 {[%emt 0:00:00]} 2. Nf3 {[%emt 0:00:16]} g6 {[%emt 0:00:20]} 3. Nc3 {[%emt 0:00:12]} d5 {[%emt 0:05:48]} 4. Bf4 {[%emt 0:00:31]} Bg7 {[%emt 0:03:07]} 5. e3 {[%emt 0:00:42]} O-O {[%emt 0:01:58]} 6. Be2 {[%emt 0:01:24]} c6 {[%emt 0:08:38]} 7. h3 {[%emt 0:01:40]} b5 {[%emt 0:05:27]} 8. a4 {[%emt 0:11:31]} b4 {[%emt 0:03:32]} 9. Na2 {[%emt 0:00:55]} a5 {[%emt 0:07:32]} 10. O-O {[%emt 0:04:37]} Ba6 {[%emt 0:08:16]} 11. c3 {[%emt 0:10:08]} bxc3 {[%emt 0:03:21]} 12. bxc3 {[%emt 0:00:19]} Nbd7 {[%emt 0:10:57]} 13. Bxa6 {[%emt 0:06:31]} Rxa6 {[%emt 0:00:05]} 14. Qd3 {[%emt 0:00:05]} Rb6 {[%emt 0:11:30]} 15. Rfb1 {[%emt 0:07:25]} c5 {[%emt 0:04:31]} 16. Rxb6 {[%emt 0:03:41]} c4 {[%emt 0:03:27]} 17. Qc2 {[%emt 0:04:02]} Qxb6 {[%emt 0:00:24]} 18. Rb1 {[%emt 0:00:35]} Qc6 {[%emt 0:00:09]} 19. Rb5 {[%emt 0:02:36]} Ra8 {[%emt 0:00:08]} 20. Nc1 {[%emt 0:05:38]} Ne4 {[%emt 0:00:33]} 21. Ne2 {[%emt 0:03:13]} f6 {[%emt 0:06:31]} 22. Nd2 {[%emt 0:06:35]} Nxd2 {[%emt 0:01:30]} 23. Qxd2 {[%emt 0:00:06]} Nb6 {[%emt 0:00:35]} 24. Qd1 {[%emt 0:05:25]} Ra6 {[%emt 0:01:54]} 25. e4 {[%emt 0:02:43]} Bf8 {[%emt 0:04:51]} 26. h4 {[%emt 0:05:20]} e6 {[%emt 0:00:32]} 27. e5 {[%emt 0:00:56]} f5 {[%emt 0:00:46]} 28. Bg5 {[%emt 0:01:26]} Qd7 {[%emt 0:04:18]} 29. Qb1 {[%emt 0:05:03]} Qc6 {[%emt 0:01:17]} 30. Qd1 {[%emt 0:00:34]} Qd7 {[%emt 0:00:24]} 31. Nf4 {[%emt 0:03:07]} Kf7 {[%emt 0:00:17]} 32. h5 {[%emt 0:01:38]} Qc6 {[%emt 0:01:14]} 33. hxg6+ {[%emt 0:00:41]} hxg6 {[%emt 0:00:03]} 34. Bd8 {[%emt 0:00:21]} Nd7 {[%emt 0:01:18]} 35. g4 {[%emt 0:02:02]} Bh6 {[%emt 0:00:47]} 36. Qf3 {[%emt 0:01:47]} Ra8 {[%emt 0:00:49]} 37. gxf5 {[%emt 0:01:22]} Bxf4 {[%emt 0:00:47]} 38. fxg6+ {[%emt 0:00:42]} Kg7 {[%emt 0:00:51]} 39. Be7 {[%emt 0:00:37]} Rh8 {[%emt 0:00:32]} 40. Qxf4 {[%emt 0:00:00]} Kxg6 {[%emt 0:00:00]} 41. f3 {[%emt 0:08:21]} Rg8 {[%emt 0:11:59]} 42. Rb2 {[%emt 0:00:47]} Rg7 {[%emt 0:04:11]} 43. Rh2 {[%emt 0:04:35]} Rg8 {[%emt 0:00:35]} 44. Qg5+ {[%emt 0:00:40]} 1-0

[Event "EYCC Girls-U18 2019"]
[Site "Bratislava"]
[Date "2019.08.03"]
[Round "2.7"]
[White "Hryshchenko, Kamila"]
[Black "Sliwicka, Alicja"]
[Result "0-1"]
[ECO "B56"]
[WhiteElo "2060"]
[BlackElo "2261"]
[Annotator "NA"]
[PlyCount "120"]
[EventDate "2019.08.02"]
[EventType "swiss"]
[EventCountry "SVK"]
[SourceTitle "playchess.com"]
[Source "ChessBase"]
[SourceQuality "1"]
[TimeControl "40/5400+30:1800+30"]

1. e4 {[%emt 0:00:00]} c5 {[%emt 0:00:00]} 2. Nf3 {[%emt 0:00:00]} d6 {[%emt 0:00:00]} 3. d4 {[%emt 0:00:09]} cxd4 {[%emt 0:00:00]} 4. Nxd4 {[%emt 0:00:06]} Nf6 {[%emt 0:00:00]} 5. Nc3 {[%emt 0:00:26]} Bd7 {[%emt 0:00:04]} 6. f3 {[%emt 0:00:43]} e5 {[%emt 0:00:12]} 7. Nb3 {[%emt 0:00:14]} Be7 {[%emt 0:00:09]} 8. Be3 {[%emt 0:00:33]} O-O {[%emt 0:00:12]} 9. g4 {[%emt 0:01:21]} a5 {[%emt 0:03:38]} 10. g5 {[%emt 0:01:52]} Nh5 {[%emt 0:08:52]} 11. Qd2 {[%emt 0:01:06]} a4 {[%emt 0:07:46]} 12. Nc1 {[%emt 0:00:16]} Na6 {[%emt 0:07:33]} 13. Nd5 {[%emt 0:07:48]} Bc6 {[%emt 0:03:58]} 14. Ne2 {[%emt 0:14:57]} Bxd5 {[%emt 0:05:23]} 15. exd5 {[%emt 0:00:13]} f5 {[%emt 0:04:50]} 16. Nc3 {[%emt 0:08:24]} Nc5 {[%emt 0:10:23]} 17. Rg1 {[%emt 0:12:19]} g6 {[%emt 0:05:46]} 18. a3 {[%emt 0:01:51]} Qa5 {[%emt 0:01:54]} 19. Be2 {[%emt 0:14:12]} Rac8 {[%emt 0:03:59]} 20. Ne4 {[%emt 0:07:04]} Qxd2+ {[%emt 0:07:38]} 21. Nxd2 {[%emt 0:00:13]} Rf7 {[%emt 0:03:09]} 22. Bb5 {[%emt 0:03:07]} Bf8 {[%emt 0:06:16]} 23. O-O-O {[%emt 0:03:42]} Rfc7 {[%emt 0:03:47]} 24. Kb1 {[%emt 0:02:00]} Kh8 {[%emt 0:04:01]} 25. Nc4 {[%emt 0:02:04]} b6 {[%emt 0:04:06]} 26. Bc6 {[%emt 0:06:10]} Rb8 {[%emt 0:00:57]} 27. Bxc5 {[%emt 0:00:30]} bxc5 {[%emt 0:00:05]} 28. Bxa4 {[%emt 0:00:21]} Nf4 {[%emt 0:01:04]} 29. Rd2 {[%emt 0:01:15]} h6 {[%emt 0:02:46]} 30. h4 {[%emt 0:04:29]} hxg5 {[%emt 0:00:31]} 31. hxg5 {[%emt 0:00:09]} Rh7 {[%emt 0:00:19]} 32. Bc6 {[%emt 0:01:26]} Be7 {[%emt 0:03:07]} 33. Rg3 {[%emt 0:03:22]} Bd8 {[%emt 0:00:45]} 34. a4 {[%emt 0:01:03]} Rh4 {[%emt 0:01:12]} 35. Nxd6 {[%emt 0:02:16]} Ba5 {[%emt 0:00:07]} 36. c3 {[%emt 0:00:44]} Bxc3 {[%emt 0:00:21]} 37. Rc2 {[%emt 0:00:03]} Nd3 {[%emt 0:00:36]} 38. Rg1 {[%emt 0:01:46]} Nxb2 {[%emt 0:01:36]} 39. Nb7 {[%emt 0:00:41]} Nxa4 {[%emt 0:00:44]} 40. Kc1 {[%emt 0:00:00]} Rb4 {[%emt 0:00:00]} 41. Rh1+ {[%emt 0:03:06]} Kg8 {[%emt 0:08:39]} 42. Rch2 {[%emt 0:01:02]} e4 {[%emt 0:00:19]} 43. d6 {[%emt 0:04:44]} R4xb7 {[%emt 0:07:09]} 44. Bxb7 {[%emt 0:02:27]} Rxb7 {[%emt 0:00:06]} 45. Ra2 {[%emt 0:01:06]} Nb6 {[%emt 0:01:10]} 46. fxe4 {[%emt 0:02:28]} fxe4 {[%emt 0:02:44]} 47. Rh6 {[%emt 0:05:21]} Kg7 {[%emt 0:02:03]} 48. Rah2 {[%emt 0:02:44]} Rd7 {[%emt 0:01:24]} 49. Rh7+ {[%emt 0:01:44]} Kg8 {[%emt 0:00:21]} 50. Rxd7 {[%emt 0:00:11]} Nxd7 {[%emt 0:00:06]} 51. Re2 {[%emt 0:00:28]} Be5 {[%emt 0:00:35]} 52. Rxe4 {[%emt 0:00:16]} Kf7 {[%emt 0:01:34]} 53. Rh4 {[%emt 0:03:05]} Bxd6 {[%emt 0:00:34]} 54. Rh7+ {[%emt 0:00:50]} Ke6 {[%emt 0:00:08]} 55. Rg7 {[%emt 0:00:17]} Ne5 {[%emt 0:00:15]} 56. Ra7 {[%emt 0:00:40]} Be7 {[%emt 0:00:27]} 57. Kc2 {[%emt 0:00:26]} Bxg5 {[%emt 0:00:26]} 58. Kc3 {[%emt 0:00:14]} Be3 {[%emt 0:00:28]} 59. Rg7 {[%emt 0:00:18]} g5 {[%emt 0:00:39]} 60. Rg8 {[%emt 0:00:08]} g4 {[%emt 0:00:30] Kd4} 0-1

[Event "EYCC Girls-U18 2019"]
[Site "Bratislava"]
[Date "2019.08.03"]
[Round "2.8"]
[White "Schneider, Jana"]
[Black "Swiech, Joanna"]
[Result "1-0"]
[ECO "C55"]
[WhiteElo "2216"]
[BlackElo "1879"]
[Annotator "NA"]
[PlyCount "139"]
[EventDate "2019.08.02"]
[EventType "swiss"]
[EventCountry "SVK"]
[SourceTitle "playchess.com"]
[Source "ChessBase"]
[SourceQuality "1"]
[TimeControl "40/5400+30:1800+30"]

1. e4 {[%emt 0:00:00]} e5 {[%emt 0:00:00]} 2. Nf3 {[%emt 0:00:00]} Nc6 {[%emt 0:00:00]} 3. Bc4 {[%emt 0:00:00]} Nf6 {[%emt 0:00:00]} 4. d3 {[%emt 0:00:00]} Be7 {[%emt 0:00:13]} 5. O-O {[%emt 0:00:04]} O-O {[%emt 0:00:14]} 6. Re1 {[%emt 0:00:09]} d6 {[%emt 0:00:22]} 7. a4 {[%emt 0:00:09]} Na5 {[%emt 0:00:56]} 8. Ba2 {[%emt 0:00:09]} c5 {[%emt 0:00:22]} 9. c3 {[%emt 0:00:21]} Bg4 {[%emt 0:07:59]} 10. Na3 {[%emt 0:03:09]} Nc6 {[%emt 0:07:54]} 11. Nc4 {[%emt 0:02:32]} b6 {[%emt 0:08:15]} 12. Bg5 {[%emt 0:11:58]} h6 {[%emt 0:05:45]} 13. Bd2 {[%emt 0:03:50]} Re8 {[%emt 0:09:49]} 14. Ne3 {[%emt 0:01:58]} Be6 {[%emt 0:01:14]} 15. b4 {[%emt 0:11:31]} Bf8 {[%emt 0:11:09]} 16. b5 {[%emt 0:11:21]} Na5 {[%emt 0:01:16]} 17. c4 {[%emt 0:07:15]} Nb7 {[%emt 0:01:02]} 18. h3 {[%emt 0:01:46]} g6 {[%emt 0:04:56]} 19. Nh2 {[%emt 0:01:54]} Bg7 {[%emt 0:02:07]} 20. Qf3 {[%emt 0:01:23]} Rf8 {[%emt 0:05:51]} 21. Bb3 {[%emt 0:02:24]} Kh7 {[%emt 0:04:10]} 22. g4 {[%emt 0:06:24]} a5 {[%emt 0:04:17]} 23. Kh1 {[%emt 0:07:38]} Nd7 {[%emt 0:03:58]} 24. Rg1 {[%emt 0:03:05]} Rb8 {[%emt 0:06:39]} 25. Rg3 {[%emt 0:02:22]} Bf6 {[%emt 0:00:39]} 26. Nf5 {[%emt 0:02:41]} Bg5 {[%emt 0:07:15]} 27. Bxg5 {[%emt 0:00:37]} Qxg5 {[%emt 0:00:25]} 28. Qe2 {[%emt 0:01:12]} Rg8 {[%emt 0:02:39]} 29. Rag1 {[%emt 0:01:22]} Qd8 {[%emt 0:01:02]} 30. Qe3 {[%emt 0:02:58]} Qg5 {[%emt 0:01:50]} 31. Qe2 {[%emt 0:00:23]} Qd8 {[%emt 0:00:05]} 32. Bd1 {[%emt 0:00:45]} Nf8 {[%emt 0:00:42]} 33. Qf3 {[%emt 0:01:57]} f6 {[%emt 0:01:38]} 34. Qe3 {[%emt 0:01:35]} g5 {[%emt 0:00:38]} 35. h4 {[%emt 0:02:59]} Ng6 {[%emt 0:00:49]} 36. hxg5 {[%emt 0:01:03]} fxg5 {[%emt 0:00:06]} 37. Rh3 {[%emt 0:02:53]} Bxf5 {[%emt 0:00:13]} 38. gxf5 {[%emt 0:00:06]} Nf4 {[%emt 0:00:07]} 39. Ng4 {[%emt 0:00:42]} h5 {[%emt 0:01:42]} 40. Rh2 {[%emt 0:00:00]} h4 {[%emt 0:00:00]} 41. Qf3 {[%emt 0:08:05]} Qe7 {[%emt 0:04:16]} 42. Ne3 {[%emt 0:01:17]} Qf6 {[%emt 0:04:57]} 43. Nd5 {[%emt 0:09:43]} Nxd5 {[%emt 0:00:48]} 44. Qh5+ {[%emt 0:00:23]} Qh6 {[%emt 0:00:17]} 45. cxd5 {[%emt 0:00:56]} Rbf8 {[%emt 0:01:52]} 46. Rhg2 {[%emt 0:00:32]} Rf6 {[%emt 0:06:28]} 47. Rxg5 {[%emt 0:00:49]} Rxg5 {[%emt 0:00:11]} 48. Qxg5 {[%emt 0:00:53]} Qxg5 {[%emt 0:00:21]} 49. Rxg5 {[%emt 0:00:05]} Nd8 {[%emt 0:00:49]} 50. Kh2 {[%emt 0:01:39]} Nf7 {[%emt 0:00:45]} 51. Rg4 {[%emt 0:01:55]} Rh6 {[%emt 0:00:24]} 52. Kh3 {[%emt 0:00:09]} Kh8 {[%emt 0:03:21]} 53. Rxh4 {[%emt 0:00:32]} Kg7 {[%emt 0:01:27]} 54. Rxh6 {[%emt 0:11:46]} Kxh6 {[%emt 0:01:28]} 55. Kg4 {[%emt 0:01:36]} Kg7 {[%emt 0:00:46]} 56. Kh5 {[%emt 0:00:26]} Kf6 {[%emt 0:00:15]} 57. Bf3 {[%emt 0:01:46]} Ng5 {[%emt 0:00:56]} 58. Bg2 {[%emt 0:00:11]} Nf7 {[%emt 0:00:08]} 59. f3 {[%emt 0:01:09]} Kg7 {[%emt 0:00:11]} 60. Bh3 {[%emt 0:00:15]} Kf6 {[%emt 0:00:27]} 61. Bg4 {[%emt 0:00:08]} Kg7 {[%emt 0:00:46]} 62. Kh4 {[%emt 0:00:07]} Kf6 {[%emt 0:00:14]} 63. Bh5 {[%emt 0:00:04]} Nh6 {[%emt 0:00:54]} 64. Bg6 {[%emt 0:00:25]} Ng8 {[%emt 0:00:22]} 65. Kh5 {[%emt 0:00:34]} Ne7 {[%emt 0:00:22]} 66. Kh6 {[%emt 0:00:26]} Ng8+ {[%emt 0:00:49]} 67. Kh7 {[%emt 0:00:06]} Ne7 {[%emt 0:00:04]} 68. Be8 {[%emt 0:00:06]} Nc8 {[%emt 0:00:30]} 69. Bd7 {[%emt 0:00:12]} Ne7 {[%emt 0:00:11]} 70. Be6 {[%emt 0:00:04]} 1-0